[Event "NJSK 2022 Jeugd B"]
[Site "Almelo, Netherlands"]
[Date "2022.05.01"]
[Round "1.9"]
[White "Groen, Jari"]
[Black "Smid, Jelle"]
[Result "1-0"]
[TimeControl "90min/40moves + 30min + 30sec/move"]
[WhiteElo "1750"]
[BlackElo "1450"]

1. e4 {[%clk 01:30:54]} {[%emt 00:00:06]} e6 {[%clk 01:30:54]} {[%emt
00:00:06]} 2. d4 {[%clk 01:31:04]} {[%emt 00:00:19]} d5 {[%clk 01:31:20]}
{[%emt 00:00:05]} 3. Nc3 {[%clk 01:31:12]} {[%emt 00:00:22]} Nc6 {[%clk
01:31:21]} {[%emt 00:00:29]} 4. e5 {[%clk 01:26:46]} {[%emt 00:04:54]} f6
{[%clk 01:31:41]} {[%emt 00:00:11]} 5. Bd3 {[%clk 01:11:57]} {[%emt 00:15:19]}
Qe7 {[%clk 01:27:39]} {[%emt 00:04:32]} 6. Nf3 {[%clk 01:08:39]} {[%emt
00:03:48]} Qf7 {[%clk 01:22:19]} {[%emt 00:05:49]} 7. Bf4 {[%clk 00:59:20]}
{[%emt 00:09:49]} f5 {[%clk 01:14:08]} {[%emt 00:08:41]} 8. O-O {[%clk
00:53:13]} {[%emt 00:06:37]} h6 {[%clk 01:13:38]} {[%emt 00:01:00]} 9. h4
{[%clk 00:39:01]} {[%emt 00:14:42]} g6 {[%clk 01:07:46]} {[%emt 00:06:21]} 10.
Ne2 {[%clk 00:36:10]} {[%emt 00:03:21]} Nb4 {[%clk 01:05:58]} {[%emt 00:02:18]}
11. c4 {[%clk 00:33:38]} {[%emt 00:03:02]} Bd7 {[%clk 01:03:44]} {[%emt
00:02:44]} 12. Nc3 {[%clk 00:25:05]} {[%emt 00:09:03]} Ne7 {[%clk 01:02:40]}
{[%emt 00:01:34]} 13. Rc1 {[%clk 00:20:51]} {[%emt 00:04:44]} Nxd3 {[%clk
00:59:13]} {[%emt 00:03:58]} 14. Qxd3 {[%clk 00:21:15]} {[%emt 00:00:05]} Bc6
{[%clk 00:58:14]} {[%emt 00:01:30]} 15. b3 {[%clk 00:19:05]} {[%emt 00:20:29]}
Qh7 {[%clk 00:56:45]} {[%emt 00:01:58]} 16. Bd2 {[%clk 00:14:48]} {[%emt
00:04:48]} g5 {[%clk 00:56:44]} {[%emt 00:00:31]} 17. Rfd1 {[%clk 00:12:03]}
{[%emt 00:03:16]} gxh4 {[%clk 00:51:41]} {[%emt 00:05:32]} 18. Nxh4 {[%clk
00:11:49]} {[%emt 00:00:44]} Rd8 {[%clk 00:51:05]} {[%emt 00:01:06]} 19. Bf4
{[%clk 00:09:09]} {[%emt 00:03:10]} Rg8 {[%clk 00:50:23]} {[%emt 00:01:12]} 20.
c5 {[%clk 00:08:08]} {[%emt 00:01:31]} Rg4 {[%clk 00:49:51]} {[%emt 00:01:02]}
21. g3 {[%clk 00:07:20]} {[%emt 00:01:19]} Ng6 {[%clk 00:48:40]} {[%emt
00:01:41]} 22. Nxg6 {[%clk 00:06:50]} {[%emt 00:01:00]} Rxg6 {[%clk 00:46:23]}
{[%emt 00:02:47]} 23. Kf1 {[%clk 00:05:10]} {[%emt 00:02:10]} Be7 {[%clk
00:46:03]} {[%emt 00:00:50]} 24. Ke1 {[%clk 00:03:59]} {[%emt 00:01:41]} h5
{[%clk 00:45:06]} {[%emt 00:01:26]} 25. Kd2 {[%clk 00:03:03]} {[%emt 00:01:27]}
Kf7 {[%clk 00:44:46]} {[%emt 00:00:49]} 26. Rh1 {[%clk 00:02:39]} {[%emt
00:00:54]} h4 {[%clk 00:44:58]} {[%emt 00:00:18]} 27. gxh4 {[%clk 00:02:03]}
{[%emt 00:01:06]} Rg4 {[%clk 00:45:13]} {[%emt 00:00:15]} 28. Ne2 {[%clk
00:01:25]} {[%emt 00:01:08]} a6 {[%clk 00:45:17]} {[%emt 00:00:27]} 29. a4
{[%clk 00:01:22]} {[%emt 00:00:34]} Rxh4 {[%clk 00:45:02]} {[%emt 00:00:44]} 30.
Rxh4 {[%clk 00:00:56]} {[%emt 00:00:56]} Qxh4 {[%clk 00:45:24]} {[%emt
00:00:07]} 31. Qg3 {[%clk 00:00:48]} {[%emt 00:00:38]} Rh8 {[%clk 00:42:55]}
{[%emt 00:02:59]} 32. Rg1 {[%clk 00:00:52]} {[%emt 00:00:26]} Qxg3 {[%clk
00:43:05]} {[%emt 00:00:20]} 33. Nxg3 {[%clk 00:00:52]} {[%emt 00:00:30]} Rh4
{[%emt 00:03:29]} 34. Ne2 {[%clk 00:00:42]} Be8 {[%clk 00:39:40]} {[%emt
00:01:36]} 35. Ke3 {[%clk 00:00:38]} {[%emt 00:00:34]} Kf8 {[%clk 00:39:14]}
{[%emt 00:00:56]} 36. Bg5 {[%clk 00:00:39]} {[%emt 00:00:29]} Rh3+ {[%clk
00:39:06]} {[%emt 00:00:37]} 37. f3 {[%clk 00:00:54]} {[%emt 00:00:15]} Bxg5+
{[%clk 00:38:45]} {[%emt 00:00:51]} 38. Rxg5 {[%clk 00:01:20]} {[%emt
00:00:05]} Rh1 {[%clk 00:38:35]} {[%emt 00:00:40]} 39. Kd2 {[%clk 00:00:58]}
{[%emt 00:00:52]} b5 {[%clk 00:37:54]} {[%emt 00:01:11]} 40. cxb6 {[%clk
00:00:39]} {[%emt 00:00:49]} cxb6 {[%clk 00:38:12]} {[%emt 00:00:11]} 41. Nf4
{[%clk 00:28:27]} {[%emt 00:02:42]} Bf7 {[%clk 01:07:18]} {[%emt 00:01:24]} 42.
Rg3 {[%clk 00:27:03]} {[%emt 00:01:54]} Rh2+ {[%clk 01:02:25]} {[%emt
00:05:23]} 43. Kc3 {[%clk 00:25:58]} {[%emt 00:01:35]} Rh8 {[%clk 00:57:15]}
{[%emt 00:05:40]} 44. Rh3 {[%clk 00:16:32]} {[%emt 00:09:57]} Rxh3 {[%clk
00:57:23]} {[%emt 00:00:21]} 45. Nxh3 {[%clk 00:16:58]} {[%emt 00:00:04]} Ke7
{[%clk 00:57:24]} {[%emt 00:00:28]} 46. Kb4 {[%clk 00:15:51]} {[%emt 00:01:38]}
Kd7 {[%clk 00:55:56]} {[%emt 00:01:58]} 47. a5 {[%clk 00:14:10]} {[%emt
00:02:11]} Kc6 {[%clk 00:55:01]} {[%emt 00:01:24]} 48. Ng5 {[%clk 00:13:05]}
{[%emt 00:01:35]} Bg8 {[%clk 00:55:15]} {[%emt 00:00:16]} 49. Ka4 {[%clk
00:11:34]} {[%emt 00:02:01]} Kb7 {[%clk 00:51:59]} {[%emt 00:03:46]} 50. Nh3
{[%clk 00:11:16]} {[%emt 00:00:49]} Bf7 {[%clk 00:52:10]} {[%emt 00:00:18]} 51.
Nf4 {[%clk 00:11:02]} {[%emt 00:00:44]} Be8+ {[%clk 00:52:27]} {[%emt
00:00:12]} 52. Kb4 {[%clk 00:11:24]} {[%emt 00:00:08]} Bd7 {[%clk 00:52:48]}
{[%emt 00:00:09]} 53. Ng6 {[%clk 00:06:49]} {[%emt 00:05:04]} Kc7 {[%clk
00:52:16]} {[%emt 00:01:02]} 54. Nf8 {[%clk 00:06:04]} {[%emt 00:01:15]} Bc8
{[%clk 00:52:33]} {[%emt 00:00:13]} 55. Ka4 {[%clk 00:05:05]} {[%emt 00:01:29]}
Kb7 {[%clk 00:51:43]} {[%emt 00:01:20]} 56. axb6 {[%clk 00:04:10]} {[%emt
00:01:26]} Kxb6 {[%clk 00:52:02]} {[%emt 00:00:11]} 57. b4 {[%clk 00:04:17]}
{[%emt 00:00:22]} Kb7 {[%clk 00:51:26]} {[%emt 00:01:06]} 58. Ka5 {[%emt
00:01:21]} Ka7 {[%clk 00:49:20]} {[%emt 00:01:55]} 59. b5 {[%clk 00:04:02]}
{[%emt 00:00:36]} axb5 {[%clk 00:49:43]} {[%emt 00:00:07]} 60. Kxb5 {[%clk
00:04:29]} {[%emt 00:00:03]} Kb7 {[%clk 00:50:07]} {[%emt 00:00:06]} 61. Kc5
{[%clk 00:04:44]} {[%emt 00:00:15]} Kc7 {[%clk 00:50:31]} {[%emt 00:00:07]} 62.
f4 {[%clk 00:05:02]} {[%emt 00:00:11]} Bd7 {[%clk 00:49:11]} {[%emt 00:01:50]}
63. Nxd7 {[%clk 00:05:16]} {[%emt 00:00:15]} Kxd7 {[%clk 00:49:34]} {[%emt
00:00:07]} 64. Kb6 {[%clk 00:05:43]} {[%emt 00:00:04]} Ke8 {[%clk 00:49:30]}
{[%emt 00:00:34]} 65. Kc6 {[%clk 00:05:53]} {[%emt 00:01:01]} 1-0

[Event "NJSK 2022 Jeugd B"]
[Site "Almelo, Netherlands"]
[Date "2022.05.02"]
[Round "2.1"]
[White "Wage, Sander"]
[Black "Labruyere, Roger"]
[Result "1/2-1/2"]
[TimeControl "90min/40moves + 30min + 30sec/move"]
[WhiteElo "1859"]
[BlackElo "2199"]

1. d4 {[%clk 01:30:57]} {[%emt 00:00:02]} c5 {[%clk 01:30:54]} {[%emt
00:00:07]} 2. d5 {[%clk 01:31:20]} {[%emt 00:00:06]} Nf6 {[%clk 01:31:21]}
{[%emt 00:00:04]} 3. Nc3 {[%clk 01:31:38]} {[%emt 00:00:12]} g6 {[%clk
01:31:37]} {[%emt 00:00:14]} 4. e4 {[%clk 01:30:57]} {[%emt 00:01:11]} d6
{[%clk 01:32:02]} {[%emt 00:00:05]} 5. Bd2 {[%clk 01:29:41]} {[%emt 00:01:45]}
Bg7 {[%clk 01:31:56]} {[%emt 00:00:36]} 6. Nf3 {[%clk 01:25:23]} {[%emt
00:04:48]} Bg4 {[%clk 01:32:10]} {[%emt 00:00:16]} 7. Be2 {[%clk 01:25:45]}
{[%emt 00:00:08]} O-O {[%clk 01:32:10]} {[%emt 00:00:30]} 8. O-O {[%clk
01:25:15]} {[%emt 00:00:59]} e6 {[%clk 01:27:51]} {[%emt 00:04:52]} 9. dxe6
{[%clk 01:17:33]} {[%emt 00:08:11]} fxe6 {[%clk 01:26:42]} {[%emt 00:01:39]} 10.
Ng5 {[%clk 01:10:12]} {[%emt 00:07:51]} Bxe2 {[%clk 01:24:39]} {[%emt
00:02:33]} 11. Qxe2 {[%clk 01:05:04]} {[%emt 00:05:38]} Re8 {[%clk 01:24:06]}
{[%emt 00:01:03]} 12. e5 {[%clk 00:57:36]} {[%emt 00:07:58]} dxe5 {[%clk
01:23:15]} {[%emt 00:01:21]} 13. Nce4 {[%clk 00:54:12]} {[%emt 00:03:54]} Nc6
{[%clk 01:15:50]} {[%emt 00:07:55]} 14. c3 {[%clk 00:54:19]} {[%emt 00:00:24]}
Qe7 {[%clk 01:09:34]} {[%emt 00:06:45]} 15. Nxf6+ {[%clk 00:53:02]} {[%emt
00:01:47]} Bxf6 {[%clk 01:06:53]} {[%emt 00:03:11]} 16. Ne4 {[%clk 00:53:26]}
{[%emt 00:00:05]} Nd8 {[%clk 00:34:18]} {[%emt 00:33:06]} 17. f4 {[%clk
00:50:23]} {[%emt 00:03:33]} Nf7 {[%clk 00:30:41]} {[%emt 00:04:07]} 18. fxe5
{[%clk 00:50:09]} {[%emt 00:00:44]} Bxe5 {[%clk 00:31:00]} {[%emt 00:00:11]} 19.
Rf3 {[%clk 00:41:00]} {[%emt 00:09:38]} Qc7 {[%clk 00:24:03]} {[%emt 00:07:28]}
20. Raf1 {[%clk 00:37:14]} {[%emt 00:04:15]} Nd6 {[%clk 00:17:32]} {[%emt
00:07:02]} 21. Ng5 {[%clk 00:23:21]} {[%emt 00:14:23]} 1/2-1/2

[Event "NJSK 2022 Jeugd B"]
[Site "Almelo, Netherlands"]
[Date "2022.05.02"]
[Round "2.2"]
[White "Groen, Jari"]
[Black "Slagboom, Leandro"]
[Result "0-1"]
[TimeControl "90min/40moves + 30min + 30sec/move"]
[WhiteElo "1750"]
[BlackElo "1997"]

1. e4 {[%clk 01:30:53]} {[%emt 00:00:07]} c5 {[%clk 01:30:43]} {[%emt
00:00:18]} 2. Nf3 {[%clk 01:31:10]} {[%emt 00:00:12]} d6 {[%clk 01:31:08]}
{[%emt 00:00:05]} 3. d4 {[%clk 01:31:34]} {[%emt 00:00:06]} cxd4 {[%clk
01:31:33]} {[%emt 00:00:06]} 4. Nxd4 {[%clk 01:31:42]} {[%emt 00:00:21]} Nf6
{[%clk 01:31:53]} {[%emt 00:00:10]} 5. Nc3 {[%clk 01:32:01]} {[%emt 00:00:11]}
a6 {[%clk 01:31:45]} {[%emt 00:00:38]} 6. Bg5 {[%clk 01:31:35]} {[%emt
00:00:56]} e6 {[%clk 01:30:21]} {[%emt 00:01:55]} 7. f4 {[%clk 01:29:55]}
{[%emt 00:02:09]} Be7 {[%clk 01:30:31]} {[%emt 00:00:20]} 8. Qf3 {[%clk
01:29:22]} {[%emt 00:01:02]} Qc7 {[%clk 01:30:44]} {[%emt 00:00:18]} 9. Bd3
{[%clk 01:28:55]} {[%emt 00:00:56]} Nbd7 {[%clk 01:30:33]} {[%emt 00:00:41]} 10.
O-O-O {[%clk 01:28:55]} {[%emt 00:00:30]} h6 {[%clk 01:28:56]} {[%emt
00:02:08]} 11. Bh4 {[%clk 01:19:33]} {[%emt 00:09:52]} g5 {[%clk 01:28:36]}
{[%emt 00:00:50]} 12. fxg5 {[%clk 01:17:32]} {[%emt 00:02:30]} Ne5 {[%clk
01:28:51]} {[%emt 00:00:15]} 13. Qe2 {[%clk 01:14:35]} {[%emt 00:03:27]} Nfg4
{[%clk 01:28:12]} {[%emt 00:01:09]} 14. h3 {[%clk 01:09:13]} {[%emt 00:05:53]}
hxg5 {[%clk 01:28:20]} {[%emt 00:00:22]} 15. Bg3 {[%clk 01:08:49]} {[%emt
00:00:53]} Nf6 {[%clk 01:27:44]} {[%emt 00:01:07]} 16. Nf3 {[%clk 00:58:34]}
{[%emt 00:10:45]} Nh5 {[%clk 01:26:51]} {[%emt 00:01:23]} 17. Qf2 {[%clk
00:54:27]} {[%emt 00:04:37]} Nxg3 {[%clk 01:15:34]} {[%emt 00:11:47]} 18. Qxg3
{[%clk 00:54:47]} {[%emt 00:00:09]} Qc5 {[%clk 01:07:51]} {[%emt 00:08:13]} 19.
Nxe5 {[%clk 00:45:14]} {[%emt 00:10:05]} dxe5 {[%clk 01:05:05]} {[%emt
00:03:15]} 20. Rhf1 {[%clk 00:41:36]} {[%emt 00:04:08]} b5 {[%clk 01:00:02]}
{[%emt 00:05:33]} 21. Qf3 {[%clk 00:37:09]} {[%emt 00:04:57]} Rf8 {[%clk
00:58:44]} {[%emt 00:01:49]} 22. Be2 {[%clk 00:31:36]} {[%emt 00:06:03]} Bd7
{[%clk 00:52:11]} {[%emt 00:07:02]} 23. Rd3 {[%clk 00:23:27]} {[%emt 00:08:39]}
Rc8 {[%clk 00:45:16]} {[%emt 00:07:25]} 24. Rfd1 {[%clk 00:17:22]} {[%emt
00:06:35]} g4 {[%clk 00:31:36]} {[%emt 00:14:11]} 25. Qxg4 {[%clk 00:05:22]}
{[%emt 00:12:29]} b4 {[%clk 00:30:43]} {[%emt 00:01:23]} 26. Rxd7 {[%clk
00:05:31]} {[%emt 00:00:21]} bxc3 {[%clk 00:30:47]} {[%emt 00:00:27]} 27. R7d3
{[%clk 00:03:47]} {[%emt 00:02:13]} cxb2+ {[%clk 00:27:30]} {[%emt 00:03:48]}
28. Kxb2 {[%clk 00:04:06]} {[%emt 00:00:10]} Qxc2+ {[%clk 00:27:30]} {[%emt
00:00:30]} 29. Ka1 {[%clk 00:04:26]} {[%emt 00:00:11]} Rb8 {[%clk 00:25:24]}
{[%emt 00:02:36]} 30. Rb3 {[%clk 00:03:29]} {[%emt 00:01:27]} Rxb3 {[%clk
00:26:16]} {[%emt 00:00:08]} 31. axb3 {[%clk 00:04:24]} {[%emt 00:00:04]} Bb4
{[%clk 00:25:29]} {[%emt 00:01:17]} 32. Rd3 {[%clk 00:03:30]} {[%emt 00:01:24]}
Ba3 {[%clk 00:25:27]} {[%emt 00:00:32]} 0-1

[Event "NJSK 2022 Jeugd B"]
[Site "Almelo, Netherlands"]
[Date "2022.05.02"]
[Round "2.3"]
[White "Achuthan, Dylan"]
[Black "Aarts, Joaquin"]
[Result "1-0"]
[TimeControl "90min/40moves + 30min + 30sec/move"]
[WhiteElo "1995"]
[BlackElo "1631"]

1. e4 {[%clk 01:30:33]} {[%emt 00:00:27]} c5 {[%clk 01:30:53]} {[%emt
00:00:07]} 2. Nf3 {[%clk 01:30:55]} {[%emt 00:00:08]} d6 {[%clk 01:31:20]}
{[%emt 00:00:04]} 3. c3 {[%clk 01:31:15]} {[%emt 00:00:10]} Nf6 {[%clk
01:31:46]} {[%emt 00:00:04]} 4. Be2 {[%clk 01:31:38]} {[%emt 00:00:06]} g6
{[%clk 01:32:12]} {[%emt 00:00:04]} 5. Qc2 {[%clk 01:30:37]} {[%emt 00:01:30]}
Qc7 {[%clk 01:32:35]} {[%emt 00:00:08]} 6. d3 {[%clk 01:25:02]} {[%emt
00:06:05]} Bg7 {[%clk 01:32:52]} {[%emt 00:00:14]} 7. h3 {[%clk 01:23:57]}
{[%emt 00:01:34]} O-O {[%clk 01:32:48]} {[%emt 00:00:34]} 8. Bf4 {[%clk
01:24:13]} {[%emt 00:00:14]} e5 {[%clk 01:31:34]} {[%emt 00:01:44]} 9. Bh2
{[%clk 01:23:32]} {[%emt 00:01:10]} Nc6 {[%clk 01:31:51]} {[%emt 00:00:14]} 10.
a4 {[%clk 01:22:24]} {[%emt 00:01:39]} Bd7 {[%clk 01:31:14]} {[%emt 00:01:06]}
11. Nbd2 {[%clk 01:15:48]} {[%emt 00:07:05]} a6 {[%clk 01:11:57]} {[%emt
00:19:49]} 12. d4 {[%clk 00:42:59]} {[%emt 00:33:19]} cxd4 {[%clk 00:36:39]}
{[%emt 00:35:47]} 13. cxd4 {[%clk 00:39:01]} {[%emt 00:04:28]} Qa5 {[%clk
00:21:59]} {[%emt 00:15:10]} 14. O-O {[%clk 00:21:24]} {[%emt 00:18:06]} Rac8
{[%clk 00:16:12]} {[%emt 00:06:19]} 15. Nc4 {[%clk 00:17:58]} {[%emt 00:03:56]}
Nxd4 {[%clk 00:09:22]} {[%emt 00:07:20]} 16. Nxd4 {[%clk 00:15:47]} {[%emt
00:02:41]} exd4 {[%clk 00:09:47]} {[%emt 00:00:04]} 17. Qd3 {[%clk 00:12:50]}
{[%emt 00:03:27]} Qd8 {[%clk 00:06:50]} {[%emt 00:03:28]} 18. Nxd6 {[%clk
00:11:32]} {[%emt 00:01:47]} Rc6 {[%clk 00:06:35]} {[%emt 00:00:46]} 19. Bf3
{[%clk 00:08:29]} {[%emt 00:03:32]} Ne8 {[%clk 00:05:52]} {[%emt 00:01:13]} 20.
e5 {[%clk 00:05:24]} {[%emt 00:03:36]} Rb6 {[%clk 00:02:13]} {[%emt 00:04:08]}
21. Nxb7 {[%clk 00:05:10]} {[%emt 00:00:44]} Qg5 {[%clk 00:01:54]} {[%emt
00:00:50]} 22. Qxd4 {[%clk 00:04:44]} {[%emt 00:00:56]} Rb3 {[%clk 00:01:28]}
{[%emt 00:00:55]} 23. h4 {[%clk 00:03:13]} {[%emt 00:02:01]} Qf5 {[%clk
00:00:59]} {[%emt 00:01:00]} 24. Be4 {[%clk 00:02:36]} {[%emt 00:01:06]} Qg4
{[%clk 00:00:57]} {[%emt 00:00:32]} 25. f3 {[%clk 00:02:54]} {[%emt 00:00:11]}
Qxh4 {[%clk 00:00:46]} {[%emt 00:00:42]} 26. Qxd7 {[%clk 00:02:50]} {[%emt
00:00:35]} Rxb2 {[%clk 00:01:01]} {[%emt 00:00:15]} 27. Rab1 {[%clk 00:01:08]}
{[%emt 00:02:11]} Re2 {[%clk 00:01:04]} {[%emt 00:00:27]} 28. Qd3 {[%clk
00:01:17]} {[%emt 00:00:18]} Ra2 {[%clk 00:01:15]} {[%emt 00:00:23]} 29. Ra1
{[%clk 00:01:01]} {[%emt 00:00:46]} Rb2 {[%clk 00:01:31]} {[%emt 00:00:14]} 30.
f4 {[%clk 00:00:50]} {[%emt 00:00:39]} Bh6 {[%clk 00:01:13]} {[%emt 00:00:50]}
31. Bg3 {[%clk 00:00:48]} {[%emt 00:00:32]} Qg4 {[%clk 00:00:54]} {[%emt
00:00:49]} 32. Qf3 {[%clk 00:01:05]} {[%emt 00:00:12]} Qd7 {[%clk 00:01:02]}
{[%emt 00:00:21]} 33. Kh1 {[%clk 00:01:10]} {[%emt 00:00:26]} f6 {[%clk
00:00:36]} {[%emt 00:00:56]} 34. Bd5+ {[%clk 00:01:15]} {[%emt 00:00:25]} Kh8
{[%clk 00:01:01]} {[%emt 00:00:05]} 35. e6 {[%clk 00:01:23]} {[%emt 00:00:22]}
Qc7 {[%clk 00:01:08]} {[%emt 00:00:23]} 36. f5 {[%clk 00:01:33]} {[%emt
00:00:19]} Qc2 {[%clk 00:01:26]} {[%emt 00:00:13]} 37. e7 {[%clk 00:01:43]}
{[%emt 00:00:20]} 1-0

[Event "NJSK 2022 Jeugd B"]
[Site "Almelo, Netherlands"]
[Date "2022.05.02"]
[Round "2.4"]
[White "De Rooij, Kevin"]
[Black "Klaren, Oscar"]
[Result "1-0"]
[TimeControl "90min/40moves + 30min + 30sec/move"]
[WhiteElo "1584"]
[BlackElo "1878"]

1. c4 {[%clk 01:30:57]} {[%emt 00:00:02]} c5 {[%clk 01:30:56]} {[%emt
00:00:05]} 2. Nc3 {[%clk 01:31:22]} {[%emt 00:00:04]} Nc6 {[%clk 01:31:22]}
{[%emt 00:00:04]} 3. e4 {[%clk 01:31:23]} {[%emt 00:00:29]} g6 {[%clk
01:31:23]} {[%emt 00:00:30]} 4. g3 {[%clk 01:31:17]} {[%emt 00:00:36]} Bg7
{[%clk 01:31:38]} {[%emt 00:00:14]} 5. Bg2 {[%clk 01:30:17]} {[%emt 00:01:30]}
Nf6 {[%clk 01:32:00]} {[%emt 00:00:09]} 6. Nge2 {[%clk 01:30:38]} {[%emt
00:00:09]} O-O {[%clk 01:32:18]} {[%emt 00:00:12]} 7. O-O {[%clk 01:28:49]}
{[%emt 00:02:19]} d6 {[%clk 01:32:38]} {[%emt 00:00:10]} 8. d3 {[%clk
01:28:15]} {[%emt 00:01:03]} Bd7 {[%clk 01:31:03]} {[%emt 00:02:05]} 9. h3
{[%clk 01:28:10]} {[%emt 00:00:35]} a6 {[%clk 01:30:50]} {[%emt 00:00:44]} 10.
a4 {[%clk 01:25:54]} {[%emt 00:02:47]} Rb8 {[%clk 01:27:49]} {[%emt 00:03:29]}
11. Bd2 {[%clk 01:23:29]} {[%emt 00:02:55]} Ne8 {[%clk 01:26:28]} {[%emt
00:01:52]} 12. Rb1 {[%clk 01:18:38]} {[%emt 00:05:20]} Nc7 {[%clk 01:24:59]}
{[%emt 00:02:00]} 13. f4 {[%clk 01:14:29]} {[%emt 00:04:39]} b5 {[%clk
01:21:38]} {[%emt 00:03:51]} 14. axb5 {[%clk 01:14:26]} {[%emt 00:00:33]} axb5
{[%clk 01:22:02]} {[%emt 00:00:06]} 15. b3 {[%clk 01:14:39]} {[%emt 00:00:18]}
Nd4 {[%clk 01:20:02]} {[%emt 00:02:29]} 16. Nxd4 {[%clk 01:08:22]} {[%emt
00:06:47]} Bxd4+ {[%clk 01:19:10]} {[%emt 00:01:22]} 17. Kh2 {[%clk 01:08:35]}
{[%emt 00:00:17]} e6 {[%clk 01:09:57]} {[%emt 00:09:43]} 18. Ne2 {[%clk
01:03:12]} {[%emt 00:05:53]} Bg7 {[%clk 01:09:42]} {[%emt 00:00:46]} 19. Bc3
{[%clk 01:01:11]} {[%emt 00:02:31]} Bxc3 {[%clk 01:05:50]} {[%emt 00:04:21]} 20.
Nxc3 {[%clk 01:01:18]} {[%emt 00:00:23]} Qf6 {[%clk 01:05:23]} {[%emt
00:00:57]} 21. Qd2 {[%clk 00:59:52]} {[%emt 00:01:56]} bxc4 {[%clk 01:00:20]}
{[%emt 00:05:33]} 22. bxc4 {[%clk 00:59:42]} {[%emt 00:00:40]} Na6 {[%clk
00:59:23]} {[%emt 00:01:27]} 23. e5 {[%clk 00:49:43]} {[%emt 00:10:29]} Qd8
{[%clk 00:42:24]} {[%emt 00:17:29]} 24. exd6 {[%clk 00:47:01]} {[%emt
00:03:13]} Rxb1 {[%clk 00:41:59]} {[%emt 00:00:55]} 25. Rxb1 {[%clk 00:47:11]}
{[%emt 00:00:19]} Nb4 {[%clk 00:40:48]} {[%emt 00:01:41]} 26. Ne4 {[%clk
00:47:01]} {[%emt 00:00:40]} Bc6 {[%clk 00:30:12]} {[%emt 00:11:06]} 27. Rd1
{[%clk 00:36:27]} {[%emt 00:11:04]} Bxe4 {[%clk 00:21:43]} {[%emt 00:09:00]} 28.
dxe4 {[%clk 00:36:20]} {[%emt 00:00:36]} e5 {[%clk 00:21:29]} {[%emt 00:00:44]}
29. Qc3 {[%clk 00:34:51]} {[%emt 00:01:59]} Nc6 {[%clk 00:17:27]} {[%emt
00:04:33]} 30. Rd5 {[%clk 00:32:48]} {[%emt 00:02:32]} f6 {[%clk 00:14:36]}
{[%emt 00:03:21]} 31. Qa3 {[%clk 00:31:06]} {[%emt 00:02:12]} Nd4 {[%clk
00:13:09]} {[%emt 00:01:57]} 32. Qxc5 {[%clk 00:29:18]} {[%emt 00:02:18]} Qb8
{[%clk 00:12:22]} {[%emt 00:01:17]} 33. Rxd4 {[%clk 00:26:20]} {[%emt
00:03:29]} exd4 {[%clk 00:12:44]} {[%emt 00:00:08]} 34. Qd5+ {[%clk 00:26:19]}
{[%emt 00:00:30]} Kg7 {[%clk 00:10:45]} {[%emt 00:02:29]} 35. Qxd4 {[%clk
00:26:40]} {[%emt 00:00:09]} Qb4 {[%clk 00:10:07]} {[%emt 00:01:07]} 36. e5
{[%clk 00:26:29]} {[%emt 00:00:42]} Rc8 {[%clk 00:10:04]} {[%emt 00:00:33]} 37.
d7 {[%clk 00:26:01]} {[%emt 00:00:58]} Rd8 {[%clk 00:09:01]} {[%emt 00:01:33]}
38. e6 {[%clk 00:25:14]} {[%emt 00:01:17]} Qe7 {[%clk 00:09:18]} {[%emt
00:00:14]} 39. Qd5 {[%clk 00:25:32]} {[%emt 00:00:12]} h5 {[%clk 00:08:13]}
{[%emt 00:01:34]} 40. c5 {[%clk 00:25:40]} {[%emt 00:00:23]} h4 {[%clk
00:08:23]} {[%emt 00:00:19]} 41. g4 {[%clk 00:26:02]} {[%emt 00:00:07]} Rb8
{[%clk 00:08:21]} {[%emt 00:00:32]} 42. g5 {[%clk 00:22:55]} {[%emt 00:03:39]}
Kh7 {[%clk 00:06:05]} {[%emt 00:02:46]} 43. Qd6 {[%clk 00:22:43]} {[%emt
00:00:42]} Qd8 {[%clk 00:04:35]} {[%emt 00:02:00]} 44. e7 {[%clk 00:22:52]}
{[%emt 00:00:21]} 1-0